[Event "*** Titled Tuesday 3|2 Blitz"]
[Site "Chess.com"]
[Date "2015.10.06"]
[Round "5"]
[White "AnthonyWirig"]
[Black "Iball95"]
[Result "1-0"]
[WhiteElo "2549"]
[BlackElo "2353"]
[TimeControl "180+2"]
[EndTime "12:04:44 PDT"]
[Termination "AnthonyWirig won by checkmate"]

1. d4 {[%clk 0:03:01.9]} 1... d5 {[%clk 0:02:58.9]} 2. Nf3 {[%clk 0:03:02.6]}
2... Nf6 {[%clk 0:02:59.2]} 3. e3 {[%clk 0:03:02.2]} 3... Bf5 {[%clk 0:02:54.8]}
4. Nh4 {[%clk 0:02:57.2]} 4... Bg4 {[%clk 0:02:52.3]} 5. Qd3 {[%clk 0:02:58.2]}
5... Nbd7 {[%clk 0:02:44.9]} 6. h3 {[%clk 0:02:58.7]} 6... Bh5 {[%clk
0:02:45.3]} 7. g4 {[%clk 0:02:59.9]} 7... Bg6 {[%clk 0:02:46.7]} 8. Nxg6 {[%clk
0:03:01.4]} 8... hxg6 {[%clk 0:02:48.2]} 9. Bg2 {[%clk 0:03:00.6]} 9... c6
{[%clk 0:02:48.9]} 10. Bd2 {[%clk 0:02:52.5]} 10... e5 {[%clk 0:02:45.7]} 11.
Nc3 {[%clk 0:02:51.3]} 11... Qb6 {[%clk 0:02:36.5]} 12. Na4 {[%clk 0:02:45.3]}
12... Qc7 {[%clk 0:02:35.2]} 13. b3 {[%clk 0:02:34.4]} 13... e4 {[%clk
0:02:34.8]} 14. Qe2 {[%clk 0:02:33.3]} 14... g5 {[%clk 0:02:22.7]} 15. c4 {[%clk
0:02:30.8]} 15... Nb6 {[%clk 0:01:59.1]} 16. Nc3 {[%clk 0:02:27.9]} 16... O-O-O
{[%clk 0:01:49.8]} 17. c5 {[%clk 0:02:26.2]} 17... Nbd7 {[%clk 0:01:45.8]} 18.
b4 {[%clk 0:02:27.5]} 18... b6 {[%clk 0:01:39.2]} 19. a4 {[%clk 0:02:06.9]}
19... Kb8 {[%clk 0:01:36.5]} 20. Rb1 {[%clk 0:02:06.3]} 20... Ka8 {[%clk
0:01:35]} 21. Qa6 {[%clk 0:02:03.7]} 21... Be7 {[%clk 0:01:32]} 22. Kd1 {[%clk
0:01:47.4]} 22... Rb8 {[%clk 0:01:28.5]} 23. Kc2 {[%clk 0:01:45.3]} 23... bxc5
{[%clk 0:01:26.1]} 24. bxc5 {[%clk 0:01:45.4]} 24... Rxb1 {[%clk 0:01:24.4]} 25.
Rxb1 {[%clk 0:01:44.4]} 25... Rb8 {[%clk 0:01:25.7]} 26. Rxb8+ {[%clk
0:01:42.7]} 26... Nxb8 {[%clk 0:01:27.6]} 27. Qf1 {[%clk 0:01:43.3]} 27... Bd8
{[%clk 0:01:21.8]} 28. f3 {[%clk 0:01:44.3]} 28... exf3 {[%clk 0:01:18]} 29.
Qxf3 {[%clk 0:01:44.9]} 29... Qe7 {[%clk 0:01:14.7]} 30. Qf5 {[%clk 0:01:41.1]}
30... Ba5 {[%clk 0:00:33.2]} 31. Qxg5 {[%clk 0:01:19.3]} 31... Nbd7 {[%clk
0:00:28.5]} 32. Qxg7 {[%clk 0:01:06.7]} 32... Bxc3 {[%clk 0:00:27.5]} 33. Kxc3
{[%clk 0:01:08.6]} 33... Nxc5 {[%clk 0:00:21.3]} 34. dxc5 {[%clk 0:00:57.6]}
34... Qxc5+ {[%clk 0:00:23.2]} 35. Kb2 {[%clk 0:00:58.5]} 35... Qb6+ {[%clk
0:00:15.3]} 36. Kc1 {[%clk 0:00:58.6]} 36... Nd7 {[%clk 0:00:11]} 37. Qxf7
{[%clk 0:00:51.5]} 37... Nc5 {[%clk 0:00:12.4]} 38. Qf8+ {[%clk 0:00:46.6]}
38... Kb7 {[%clk 0:00:13.6]} 39. Qg7+ {[%clk 0:00:48.1]} 39... Kb8 {[%clk
0:00:14.1]} 40. Kd1 {[%clk 0:00:42.6]} 40... Qb3+ {[%clk 0:00:13.7]} 41. Ke1
{[%clk 0:00:38.9]} 41... Qb1+ {[%clk 0:00:14]} 42. Kf2 {[%clk 0:00:37.3]} 42...
Qc2 {[%clk 0:00:10.4]} 43. Qc3 {[%clk 0:00:31.6]} 43... Nd3+ {[%clk 0:00:06.3]}
44. Kg3 {[%clk 0:00:28.2]} 44... Qb1 {[%clk 0:00:06.7]} 45. Qxc6 {[%clk
0:00:22.5]} 45... Qd1 {[%clk 0:00:06.4]} 46. Qd6+ {[%clk 0:00:19.7]} 46... Kc8
{[%clk 0:00:05.8]} 47. Qe6+ {[%clk 0:00:18.8]} 47... Kb8 {[%clk 0:00:07.1]} 48.
Qe8+ {[%clk 0:00:18.5]} 48... Kc7 {[%clk 0:00:07.8]} 49. Qe7+ {[%clk 0:00:19.5]}
49... Kc8 {[%clk 0:00:08.4]} 50. Qe8+ {[%clk 0:00:20.9]} 50... Kc7 {[%clk
0:00:09.8]} 51. Ba5+ {[%clk 0:00:22.5]} 51... Kd6 {[%clk 0:00:11.1]} 52. Qd8+
{[%clk 0:00:19.3]} 52... Ke5 {[%clk 0:00:11.2]} 53. Qxd5+ {[%clk 0:00:18.9]}
53... Kf6 {[%clk 0:00:12.6]} 54. Bc3+ {[%clk 0:00:19.5]} 54... Ke7 {[%clk
0:00:14]} 55. Qe4+ {[%clk 0:00:17.5]} 55... Kd6 {[%clk 0:00:13.9]} 56. Qd4+
{[%clk 0:00:17.6]} 56... Ke7 {[%clk 0:00:10.8]} 57. Bb4+ {[%clk 0:00:18.8]}
57... Ke6 {[%clk 0:00:10.9]} 58. Bd5+ {[%clk 0:00:19.5]} 58... Kd7 {[%clk
0:00:12.3]} 59. Bf3+ {[%clk 0:00:20.5]} 59... Kc7 {[%clk 0:00:12.7]} 60. Bxd1
{[%clk 0:00:21.4]} 60... a6 {[%clk 0:00:14.6]} 61. Ba5+ {[%clk 0:00:21.6]} 61...
Kb8 {[%clk 0:00:15.1]} 62. Bf3 {[%clk 0:00:20.9]} 62... Nc5 {[%clk 0:00:17]} 63.
Qd8+ {[%clk 0:00:21]} 63... Ka7 {[%clk 0:00:17.7]} 64. Qb6# {[%clk 0:00:21.9]}
1-0

[Event "*** Titled Tuesday 3|2 Blitz"]
[Site "Chess.com"]
[Date "2015.10.06"]
[Round "5"]
[White "LADIESGET2KNOWME"]
[Black "pKiLz5Rn9b"]
[Result "0-1"]
[WhiteElo "2259"]
[BlackElo "2402"]
[TimeControl "180+2"]
[EndTime "12:04:54 PDT"]
[Termination "pKiLz5Rn9b won by checkmate"]

1. d4 {[%clk 0:03:01.9]} 1... e6 {[%clk 0:02:58.9]} 2. Nf3 {[%clk 0:03:03.1]}
2... Nf6 {[%clk 0:02:59.2]} 3. g3 {[%clk 0:03:04.3]} 3... d5 {[%clk 0:02:57.7]}
4. c4 {[%clk 0:03:04.2]} 4... Be7 {[%clk 0:02:59.6]} 5. Bg2 {[%clk 0:03:04.8]}
5... O-O {[%clk 0:03:00.6]} 6. O-O {[%clk 0:03:06.4]} 6... b6 {[%clk 0:03:02.3]}
7. cxd5 {[%clk 0:03:06.9]} 7... exd5 {[%clk 0:03:03.3]} 8. Nc3 {[%clk
0:03:08.5]} 8... Bb7 {[%clk 0:03:04.4]} 9. Ne5 {[%clk 0:03:09.7]} 9... Na6
{[%clk 0:03:04.8]} 10. Bf4 {[%clk 0:03:10.1]} 10... c5 {[%clk 0:03:06]} 11. dxc5
{[%clk 0:03:09.8]} 11... Nxc5 {[%clk 0:03:06]} 12. Rc1 {[%clk 0:03:10.1]} 12...
Re8 {[%clk 0:03:02.5]} 13. Nb5 {[%clk 0:03:01.5]} 13... Nfe4 {[%clk 0:02:43.1]}
14. Nd3 {[%clk 0:02:54.4]} 14... Ne6 {[%clk 0:02:11.3]} 15. Nc7 {[%clk
0:02:43.9]} 15... Nxc7 {[%clk 0:02:12.2]} 16. Rxc7 {[%clk 0:02:44.7]} 16... Ba6
{[%clk 0:02:12.4]} 17. Rc1 {[%clk 0:02:24.7]} 17... Bf6 {[%clk 0:02:09.9]} 18.
Qa4 {[%clk 0:02:17.8]} 18... Bxd3 {[%clk 0:02:01.5]} 19. exd3 {[%clk 0:02:19.7]}
19... Nc5 {[%clk 0:02:03.4]} 20. Qa3 {[%clk 0:02:15]} 20... Qd7 {[%clk
0:01:54.6]} 21. Be3 {[%clk 0:02:03.8]} 21... Ne6 {[%clk 0:01:49.8]} 22. Qb3
{[%clk 0:01:58.2]} 22... Rad8 {[%clk 0:01:48.9]} 23. Bh3 {[%clk 0:01:47]} 23...
Qd6 {[%clk 0:01:47.4]} 24. Bxe6 {[%clk 0:01:40.7]} 24... fxe6 {[%clk 0:01:47.9]}
25. d4 {[%clk 0:01:38.6]} 25... Rc8 {[%clk 0:01:43.3]} 26. Qb5 {[%clk
0:01:37.7]} 26... Red8 {[%clk 0:01:26.4]} 27. Kg2 {[%clk 0:01:29]} 27... e5
{[%clk 0:01:19.8]} 28. Rxc8 {[%clk 0:01:22.2]} 28... Rxc8 {[%clk 0:01:18.1]} 29.
dxe5 {[%clk 0:01:23.9]} 29... Qxe5 {[%clk 0:01:18.3]} 30. Rd1 {[%clk 0:01:23.5]}
30... Rd8 {[%clk 0:01:15.5]} 31. Qa4 {[%clk 0:01:14]} 31... d4 {[%clk
0:01:10.4]} 32. Qc4+ {[%clk 0:01:05.3]} 32... Qd5+ {[%clk 0:01:05.2]} 33. Qxd5+
{[%clk 0:01:03.2]} 33... Rxd5 {[%clk 0:01:07.1]} 34. Kf3 {[%clk 0:00:58.8]}
34... Rd8 {[%clk 0:00:58]} 35. Bf4 {[%clk 0:00:56.1]} 35... Kf7 {[%clk
0:00:50.8]} 36. Ke4 {[%clk 0:00:54.3]} 36... Ke6 {[%clk 0:00:52.2]} 37. g4
{[%clk 0:00:54]} 37... g5 {[%clk 0:00:42.9]} 38. Bd2 {[%clk 0:00:52.2]} 38... d3
{[%clk 0:00:21.8]} 39. Bc3 {[%clk 0:00:45.8]} 39... Bxc3 {[%clk 0:00:23]} 40.
bxc3 {[%clk 0:00:47.7]} 40... d2 {[%clk 0:00:24.9]} 41. Ke3 {[%clk 0:00:48.5]}
41... Ke5 {[%clk 0:00:25]} 42. f3 {[%clk 0:00:33.7]} 42... Rc8 {[%clk
0:00:15.6]} 43. Kxd2 {[%clk 0:00:28.8]} 43... Kf4 {[%clk 0:00:17.2]} 44. Ke2
{[%clk 0:00:20.3]} 44... Rxc3 {[%clk 0:00:14.5]} 45. Rd4+ {[%clk 0:00:21.7]}
45... Ke5 {[%clk 0:00:15.5]} 46. Rd7 {[%clk 0:00:15.9]} 46... Rc2+ {[%clk
0:00:16]} 47. Ke3 {[%clk 0:00:17.5]} 47... Rxa2 {[%clk 0:00:17.2]} 48. Rxh7
{[%clk 0:00:18.6]} 48... Ra3+ {[%clk 0:00:18.4]} 49. Kf2 {[%clk 0:00:17.8]}
49... a5 {[%clk 0:00:19.9]} 50. Rg7 {[%clk 0:00:17.4]} 50... Kf6 {[%clk
0:00:20.6]} 51. Rb7 {[%clk 0:00:17.5]} 51... Rb3 {[%clk 0:00:21.8]} 52. h4
{[%clk 0:00:07.5]} 52... gxh4 {[%clk 0:00:21.1]} 53. f4 {[%clk 0:00:09.1]} 53...
h3 {[%clk 0:00:22.3]} 54. g5+ {[%clk 0:00:08.2]} 54... Kg6 {[%clk 0:00:23.9]}
55. Kg1 {[%clk 0:00:06.1]} 55... a4 {[%clk 0:00:24.7]} 56. Ra7 {[%clk
0:00:04.1]} 56... a3 {[%clk 0:00:25.4]} 57. Kh2 {[%clk 0:00:04.1]} 57... Kf5
{[%clk 0:00:17.6]} 58. Rf7+ {[%clk 0:00:04.6]} 58... Kg4 {[%clk 0:00:18.8]} 59.
g6 {[%clk 0:00:05.7]} 59... Rb2+ {[%clk 0:00:19.8]} 60. Kg1 {[%clk 0:00:06.5]}
60... a2 {[%clk 0:00:20.6]} 61. Ra7 {[%clk 0:00:06.7]} 61... Rb1+ {[%clk
0:00:20.9]} 62. Kf2 {[%clk 0:00:07.9]} 62... a1=Q {[%clk 0:00:21.5]} 63. g7
{[%clk 0:00:05.4]} 63... Qd4+ {[%clk 0:00:21.4]} 64. Ke2 {[%clk 0:00:05.3]}
64... Rb2+ {[%clk 0:00:22.6]} 65. Ke1 {[%clk 0:00:06.5]} 65... Qg1# {[%clk
0:00:23.5]} 0-1

[Event "*** Titled Tuesday 3|2 Blitz"]
[Site "Chess.com"]
[Date "2015.10.06"]
[Round "5"]
[White "GregShahade"]
[Black "BakaPG"]
[Result "1/2-1/2"]
[WhiteElo "2307"]
[BlackElo "2502"]
[TimeControl "180+2"]
[EndTime "12:05:10 PDT"]
[Termination "Game drawn by repetition"]

1. e4 {[%clk 0:03:01]} 1... e6 {[%clk 0:02:59.2]} 2. d4 {[%clk 0:03:01.3]} 2...
d5 {[%clk 0:02:59.8]} 3. Nd2 {[%clk 0:03:01.9]} 3... a6 {[%clk 0:02:57.6]} 4.
Ngf3 {[%clk 0:02:59.7]} 4... Nf6 {[%clk 0:02:58.1]} 5. Bd3 {[%clk 0:02:55]} 5...
c5 {[%clk 0:02:57]} 6. exd5 {[%clk 0:02:42.6]} 6... exd5 {[%clk 0:02:56.6]} 7.
dxc5 {[%clk 0:02:42.2]} 7... Bxc5 {[%clk 0:02:55.5]} 8. O-O {[%clk 0:02:43.7]}
8... O-O {[%clk 0:02:55.5]} 9. Nb3 {[%clk 0:02:39.7]} 9... Ba7 {[%clk
0:02:55.5]} 10. h3 {[%clk 0:02:33.6]} 10... Nc6 {[%clk 0:02:53.4]} 11. Bf4
{[%clk 0:02:34]} 11... Re8 {[%clk 0:02:52.3]} 12. c3 {[%clk 0:02:26.9]} 12...
Ne4 {[%clk 0:02:45.2]} 13. Nfd4 {[%clk 0:02:03.6]} 13... Qf6 {[%clk 0:02:39.8]}
14. Be3 {[%clk 0:02:00]} 14... Ne5 {[%clk 0:02:29.6]} 15. Be2 {[%clk 0:01:47.2]}
15... Qg6 {[%clk 0:02:29.4]} 16. Bh5 {[%clk 0:01:43]} 16... Qf6 {[%clk
0:02:29.5]} 17. Re1 {[%clk 0:01:21.4]} 17... Bd7 {[%clk 0:02:20.2]} 18. Bf3
{[%clk 0:01:16.8]} 18... Rad8 {[%clk 0:02:16.4]} 19. Nd2 {[%clk 0:01:07.6]}
19... Nd3 {[%clk 0:02:08.5]} 20. Bxe4 {[%clk 0:00:55.4]} 20... Nxe1 {[%clk
0:02:06.8]} 21. Bb1 {[%clk 0:00:51.1]} 21... Nxg2 {[%clk 0:01:56.6]} 22. Kxg2
{[%clk 0:00:48.2]} 22... Qh4 {[%clk 0:01:52.3]} 23. Qf3 {[%clk 0:00:45.3]} 23...
Bb8 {[%clk 0:01:51.6]} 24. Bf5 {[%clk 0:00:38.8]} 24... Re5 {[%clk 0:01:40.9]}
25. Bxd7 {[%clk 0:00:34.3]} 25... Rxd7 {[%clk 0:01:41.3]} 26. Bf4 {[%clk
0:00:31.9]} 26... Re8 {[%clk 0:01:35.5]} 27. Bxb8 {[%clk 0:00:32.4]} 27... Rxb8
{[%clk 0:01:35.3]} 28. Re1 {[%clk 0:00:32]} 28... g6 {[%clk 0:01:34.3]} 29. Nf1
{[%clk 0:00:30.7]} 29... Rf8 {[%clk 0:01:33]} 30. Ng3 {[%clk 0:00:30.3]} 30...
Qg5 {[%clk 0:01:32.4]} 31. Qe3 {[%clk 0:00:22.5]} 31... Qh4 {[%clk 0:01:29.2]}
32. Qe5 {[%clk 0:00:21.9]} 32... Rdd8 {[%clk 0:01:27.3]} 33. Qc7 {[%clk
0:00:17.5]} 33... Rde8 {[%clk 0:01:26.7]} 34. Rxe8 {[%clk 0:00:14.9]} 34... Rxe8
{[%clk 0:01:26.8]} 35. Qxb7 {[%clk 0:00:16]} 35... Qg5 {[%clk 0:01:26.9]} 36.
Qd7 {[%clk 0:00:16.2]} 36... Rd8 {[%clk 0:01:25.5]} 37. Qc7 {[%clk 0:00:15]}
37... h5 {[%clk 0:01:22.7]} 38. Nf3 {[%clk 0:00:15.4]} 38... Qf6 {[%clk
0:01:22.6]} 39. h4 {[%clk 0:00:16.9]} 39... Re8 {[%clk 0:01:22.3]} 40. Ng5
{[%clk 0:00:16.2]} 40... Re1 {[%clk 0:01:16.2]} 41. Qd7 {[%clk 0:00:12.8]} 41...
Rd1 {[%clk 0:01:14.9]} 42. Qe8+ {[%clk 0:00:12]} 42... Kg7 {[%clk 0:01:14.8]}
43. Qe2 {[%clk 0:00:13.5]} 43... Ra1 {[%clk 0:01:12.7]} 44. a3 {[%clk
0:00:13.9]} 44... d4 {[%clk 0:01:12.8]} 45. cxd4 {[%clk 0:00:12.9]} 45... Qxd4
{[%clk 0:01:12.3]} 46. N3e4 {[%clk 0:00:13.5]} 46... Qd5 {[%clk 0:01:08.4]} 47.
Qf3 {[%clk 0:00:13.9]} 47... f5 {[%clk 0:01:04.8]} 48. Nc3 {[%clk 0:00:13.5]}
48... Qd7 {[%clk 0:00:59.5]} 49. Qe3 {[%clk 0:00:12.3]} 49... Qb7+ {[%clk
0:00:58.7]} 50. f3 {[%clk 0:00:10.8]} 50... Qxb2+ {[%clk 0:00:58.4]} 51. Kg3
{[%clk 0:00:11.6]} 51... Qb8+ {[%clk 0:00:57.5]} 52. f4 {[%clk 0:00:10.6]} 52...
Qb3 {[%clk 0:00:15.9]} 53. Qe7+ {[%clk 0:00:09.4]} 53... Kg8 {[%clk 0:00:16.2]}
54. Qe8+ {[%clk 0:00:08.7]} 54... Kg7 {[%clk 0:00:17.1]} 55. Qe7+ {[%clk
0:00:09.5]} 55... Kg8 {[%clk 0:00:17.8]} 56. Qe8+ {[%clk 0:00:10.7]} 56... Kg7
{[%clk 0:00:18.6]} 57. Qe5+ {[%clk 0:00:10.1]} 57... Kg8 {[%clk 0:00:19]} 58.
Qe8+ {[%clk 0:00:06.1]} 58... Kg7 {[%clk 0:00:19.7]} 59. Qe5+ {[%clk 0:00:07]}
59... Kg8 {[%clk 0:00:20.4]} 60. Qf6 {[%clk 0:00:07.4]} 60... Rxa3 {[%clk
0:00:18.2]} 61. Qd8+ {[%clk 0:00:04.6]} 61... Kg7 {[%clk 0:00:18.9]} 62. Qe7+
{[%clk 0:00:05.8]} 62... Kg8 {[%clk 0:00:19.9]} 63. Qe8+ {[%clk 0:00:07.1]}
63... Kg7 {[%clk 0:00:20.8]} 64. Qe7+ {[%clk 0:00:08.5]} 64... Kg8 {[%clk
0:00:21.7]} 65. Qe8+ {[%clk 0:00:08.7]} 65... Kg7 {[%clk 0:00:22.6]} 66. Qe7+
{[%clk 0:00:09.9]} 66... Kg8 {[%clk 0:00:23.5]} 67. Qe8+ {[%clk 0:00:10.8]}
67... Kg7 {[%clk 0:00:24.4]} 68. Qe7+ {[%clk 0:00:11.9]} 1/2-1/2

[Event "*** Titled Tuesday 3|2 Blitz"]
[Site "Chess.com"]
[Date "2015.10.06"]
[Round "5"]
[White "Baggio95"]
[Black "GeorgMeier"]
[Result "0-1"]
[WhiteElo "2387"]
[BlackElo "2609"]
[TimeControl "180+2"]
[EndTime "12:05:26 PDT"]
[Termination "GeorgMeier won by checkmate"]

1. Nc3 {[%clk 0:03:01.9]} 1... e6 {[%clk 0:03:01.9]} 2. d4 {[%clk 0:03:01.8]}
2... d5 {[%clk 0:03:03.8]} 3. e4 {[%clk 0:03:02.7]} 3... dxe4 {[%clk 0:03:04.5]}
4. Nxe4 {[%clk 0:03:03.5]} 4... Nd7 {[%clk 0:03:06.4]} 5. Nf3 {[%clk 0:03:03.7]}
5... Ngf6 {[%clk 0:03:08.3]} 6. Bd3 {[%clk 0:03:03.5]} 6... c5 {[%clk
0:03:06.8]} 7. O-O {[%clk 0:03:01.8]} 7... Nxe4 {[%clk 0:03:07.1]} 8. Bxe4
{[%clk 0:03:02.5]} 8... Nf6 {[%clk 0:03:09]} 9. Bg5 {[%clk 0:02:59.7]} 9... cxd4
{[%clk 0:03:10.1]} 10. Nxd4 {[%clk 0:02:59.2]} 10... Be7 {[%clk 0:03:10.4]} 11.
Bf3 {[%clk 0:02:59.6]} 11... O-O {[%clk 0:03:11.8]} 12. Qd3 {[%clk 0:02:54.7]}
12... Qc7 {[%clk 0:03:11.3]} 13. Rad1 {[%clk 0:02:50.9]} 13... Ng4 {[%clk
0:03:11.3]} 14. Bxg4 {[%clk 0:02:45.3]} 14... Bxg5 {[%clk 0:03:12.5]} 15. Nb5
{[%clk 0:02:42.3]} 15... Qb6 {[%clk 0:03:10.7]} 16. Qb3 {[%clk 0:02:27.6]} 16...
a6 {[%clk 0:03:04.3]} 17. Nd6 {[%clk 0:02:27.3]} 17... Qc7 {[%clk 0:02:58.3]}
18. Bf3 {[%clk 0:02:24.7]} 18... Rb8 {[%clk 0:02:57.5]} 19. Nxc8 {[%clk
0:02:18.6]} 19... Rfxc8 {[%clk 0:02:59.4]} 20. c3 {[%clk 0:02:18.5]} 20... b5
{[%clk 0:03:00.7]} 21. Rd3 {[%clk 0:02:15.1]} 21... a5 {[%clk 0:03:00.4]} 22.
Rfd1 {[%clk 0:02:12.8]} 22... a4 {[%clk 0:02:51]} 23. Qb4 {[%clk 0:02:11.7]}
23... Qc4 {[%clk 0:02:42.1]} 24. Qa5 {[%clk 0:01:55.3]} 24... Qxa2 {[%clk
0:02:34.3]} 25. Bb7 {[%clk 0:01:34.7]} 25... Rf8 {[%clk 0:02:34.9]} 26. Qxb5
{[%clk 0:01:33.2]} 26... Bf6 {[%clk 0:02:35.9]} 27. g3 {[%clk 0:01:29]} 27... g6
{[%clk 0:02:34.9]} 28. Rd7 {[%clk 0:01:26.3]} 28... a3 {[%clk 0:02:21.3]} 29.
bxa3 {[%clk 0:01:24.3]} 29... Bxc3 {[%clk 0:02:21.8]} 30. a4 {[%clk 0:01:23.5]}
30... e5 {[%clk 0:02:22.7]} 31. Qa6 {[%clk 0:01:04.4]} 31... Bd4 {[%clk
0:02:18]} 32. Rf1 {[%clk 0:01:05.4]} 32... Rfd8 {[%clk 0:01:54.6]} 33. Bd5
{[%clk 0:00:52.8]} 33... Qxd5 {[%clk 0:01:54.4]} 34. Rxd5 {[%clk 0:00:53.3]}
34... Rxd5 {[%clk 0:01:56.3]} 35. Qc6 {[%clk 0:00:49.9]} 35... Rc5 {[%clk
0:01:51.3]} 36. Qd7 {[%clk 0:00:47.5]} 36... Rb2 {[%clk 0:01:44.8]} 37. Kg2
{[%clk 0:00:46.8]} 37... Kg7 {[%clk 0:01:43.2]} 38. Qd8 {[%clk 0:00:39.7]} 38...
Ra2 {[%clk 0:01:42.2]} 39. Qd7 {[%clk 0:00:39.6]} 39... Ra5 {[%clk 0:01:32.5]}
40. Kh3 {[%clk 0:00:39.7]} 40... R5xa4 {[%clk 0:01:28.5]} 41. f4 {[%clk
0:00:36]} 41... Ra7 {[%clk 0:01:29.3]} 42. Qd5 {[%clk 0:00:35.8]} 42... R2a5
{[%clk 0:01:28.2]} 43. Qe4 {[%clk 0:00:36.1]} 43... f5 {[%clk 0:01:22.1]} 44.
Qc6 {[%clk 0:00:36.9]} 44... exf4 {[%clk 0:01:12.2]} 45. Rxf4 {[%clk 0:00:35.9]}
45... Bf6 {[%clk 0:01:12.5]} 46. Rb4 {[%clk 0:00:34.4]} 46... Rf7 {[%clk
0:01:02]} 47. Rb8 {[%clk 0:00:34.7]} 47... Raa7 {[%clk 0:00:59.9]} 48. Qe8
{[%clk 0:00:34.5]} 48... Kh6 {[%clk 0:00:59.3]} 49. Qe3+ {[%clk 0:00:31.9]}
49... Bg5 {[%clk 0:01:00.3]} 50. Qd4 {[%clk 0:00:28.9]} 50... f4 {[%clk
0:00:55.7]} 51. gxf4 {[%clk 0:00:24.6]} 51... Bxf4 {[%clk 0:00:56.3]} 52. Rb2
{[%clk 0:00:20.7]} 52... Bg5 {[%clk 0:00:47.6]} 53. Re2 {[%clk 0:00:18.8]} 53...
Ra5 {[%clk 0:00:33.5]} 54. Qc4 {[%clk 0:00:16.8]} 54... Raf5 {[%clk 0:00:30.8]}
55. Kg2 {[%clk 0:00:17.6]} 55... Rf4 {[%clk 0:00:30.4]} 56. Qd5 {[%clk
0:00:18.3]} 56... Rg4+ {[%clk 0:00:27]} 57. Kh3 {[%clk 0:00:16.9]} 57... Rff4
{[%clk 0:00:27.9]} 58. Rg2 {[%clk 0:00:09]} 58... Rh4+ {[%clk 0:00:28.3]} 59.
Kg3 {[%clk 0:00:10.3]} 59... Rf5 {[%clk 0:00:25.1]} 60. Qc6 {[%clk 0:00:08.1]}
60... Rd4 {[%clk 0:00:22.2]} 61. Re2 {[%clk 0:00:08.4]} 61... Kh5 {[%clk
0:00:14.2]} 62. Kg2 {[%clk 0:00:08.2]} 62... Rg4+ {[%clk 0:00:14.5]} 63. Kh3
{[%clk 0:00:08.9]} 63... Rff4 {[%clk 0:00:11.7]} 64. Rg2 {[%clk 0:00:09.7]}
64... Rh4+ {[%clk 0:00:11.4]} 65. Kg3 {[%clk 0:00:11.2]} 65... Bf6 {[%clk
0:00:11.9]} 66. h3 {[%clk 0:00:12.3]} 66... Rf5 {[%clk 0:00:11.2]} 67. Re2
{[%clk 0:00:12.3]} 67... Be5+ {[%clk 0:00:10.6]} 68. Kg2 {[%clk 0:00:13]} 68...
Rhf4 {[%clk 0:00:11.7]} 69. Qb7 {[%clk 0:00:11.5]} 69... Rg5+ {[%clk 0:00:12.7]}
70. Kh1 {[%clk 0:00:12]} 70... Rf1# {[%clk 0:00:13.2]} 0-1

[Event "*** Titled Tuesday 3|2 Blitz"]
[Site "Chess.com"]
[Date "2015.10.06"]
[Round "6"]
[White "alturas_pacificas"]
[Black "dpopadic"]
[Result "0-1"]
[WhiteElo "2096"]
[BlackElo "2215"]
[TimeControl "180+2"]
[EndTime "12:08:24 PDT"]
[Termination "dpopadic won by resignation"]

1. d4 {[%clk 0:03:01.9]} 1... Nf6 {[%clk 0:02:59.9]} 2. Bf4 {[%clk 0:03:02.5]}
2... g6 {[%clk 0:03:00.9]} 3. e3 {[%clk 0:03:03.7]} 3... Bg7 {[%clk 0:03:01.8]}
4. Be2 {[%clk 0:03:04.8]} 4... d6 {[%clk 0:03:03.2]} 5. Nf3 {[%clk 0:03:06.2]}
5... O-O {[%clk 0:03:02.6]} 6. O-O {[%clk 0:03:07.7]} 6... c5 {[%clk 0:03:03.9]}
7. h3 {[%clk 0:03:08.9]} 7... Nc6 {[%clk 0:03:04.9]} 8. c3 {[%clk 0:03:09.7]}
8... Bf5 {[%clk 0:03:05.9]} 9. Nbd2 {[%clk 0:03:09.4]} 9... Ne4 {[%clk
0:03:06.4]} 10. Nxe4 {[%clk 0:03:09.8]} 10... Bxe4 {[%clk 0:03:07.1]} 11. Nd2
{[%clk 0:03:11.7]} 11... Bf5 {[%clk 0:03:08.2]} 12. Bf3 {[%clk 0:03:12.9]} 12...
Rc8 {[%clk 0:03:08.8]} 13. e4 {[%clk 0:03:13.7]} 13... Bd7 {[%clk 0:03:09.2]}
14. Be3 {[%clk 0:03:13]} 14... b6 {[%clk 0:03:07.6]} 15. Qe2 {[%clk 0:03:13.5]}
15... Qc7 {[%clk 0:03:07.6]} 16. Rfc1 {[%clk 0:03:14]} 16... Qb8 {[%clk
0:03:06.5]} 17. a3 {[%clk 0:03:15.2]} 17... cxd4 {[%clk 0:03:02.6]} 18. cxd4
{[%clk 0:03:15.8]} 18... Nxd4 {[%clk 0:03:02.5]} 19. Bxd4 {[%clk 0:03:16.3]}
19... Bxd4 {[%clk 0:03:03.3]} 20. Nb3 {[%clk 0:03:17.2]} 20... Bg7 {[%clk
0:03:01.8]} 21. Qa6 {[%clk 0:03:05.9]} 21... Bxb2 {[%clk 0:02:58]} 22. Rxc8
{[%clk 0:03:05.4]} 22... Qxc8 {[%clk 0:02:56.5]} 23. Qxc8 {[%clk 0:03:03.6]}
23... Rxc8 {[%clk 0:02:57.2]} 24. Ra2 {[%clk 0:03:05.5]} 24... Be5 {[%clk
0:02:53.4]} 25. a4 {[%clk 0:03:03.7]} 25... Be6 {[%clk 0:02:54.3]} 26. Ra3
{[%clk 0:03:02.4]} 26... Bxb3 {[%clk 0:02:52.3]} 27. Rxb3 {[%clk 0:03:03.1]}
27... Rc1+ {[%clk 0:02:52.4]} 0-1

[Event "*** Titled Tuesday 3|2 Blitz"]
[Site "Chess.com"]
[Date "2015.10.06"]
[Round "6"]
[White "Badouuu"]
[Black "pedromartinez91"]
[Result "0-1"]
[WhiteElo "1956"]
[BlackElo "2220"]
[TimeControl "180+2"]
[EndTime "12:09:02 PDT"]
[Termination "pedromartinez91 won by resignation"]

1. e4 {[%clk 0:02:53.5]} 1... c5 {[%clk 0:03:00.2]} 2. Nf3 {[%clk 0:02:54.7]}
2... Nc6 {[%clk 0:03:00.6]} 3. Bb5 {[%clk 0:02:55]} 3... g6 {[%clk 0:03:01]} 4.
O-O {[%clk 0:02:52.2]} 4... Bg7 {[%clk 0:03:01.5]} 5. c3 {[%clk 0:02:53.7]} 5...
Nf6 {[%clk 0:03:02]} 6. Re1 {[%clk 0:02:52.4]} 6... O-O {[%clk 0:03:02.6]} 7. h3
{[%clk 0:02:52.4]} 7... Qb6 {[%clk 0:03:01.3]} 8. a4 {[%clk 0:02:52.4]} 8... d6
{[%clk 0:03:01.7]} 9. Na3 {[%clk 0:02:51.3]} 9... a6 {[%clk 0:03:02.2]} 10. Bf1
{[%clk 0:02:51.1]} 10... Qc7 {[%clk 0:02:55.1]} 11. d4 {[%clk 0:02:51.1]} 11...
cxd4 {[%clk 0:02:55.5]} 12. cxd4 {[%clk 0:02:53]} 12... d5 {[%clk 0:02:54.3]}
13. e5 {[%clk 0:02:38.4]} 13... Ne4 {[%clk 0:02:54.3]} 14. Nh2 {[%clk
0:02:33.2]} 14... f6 {[%clk 0:02:50.6]} 15. f3 {[%clk 0:02:33]} 15... Ng3 {[%clk
0:02:50]} 16. Bf4 {[%clk 0:02:30.9]} 16... Nxf1 {[%clk 0:02:49]} 17. Nxf1 {[%clk
0:02:31.2]} 17... Qb6 {[%clk 0:02:47.1]} 18. exf6 {[%clk 0:02:28.9]} 18... Bxf6
{[%clk 0:02:41.4]} 19. Be5 {[%clk 0:02:30.2]} 19... Bxe5 {[%clk 0:02:41.5]} 20.
Kh1 {[%clk 0:02:27.2]} 20... Qxd4 {[%clk 0:02:41.8]} 21. Qb3 {[%clk 0:02:21.4]}
21... e6 {[%clk 0:02:37.5]} 22. Rad1 {[%clk 0:02:16.5]} 22... Qxb2 {[%clk
0:02:38]} 0-1